[Event "*** Titled Tuesday Blitz"]
[Site "Chess.com"]
[Date "2020.11.24"]
[Round "2"]
[White "DoHoChess"]
[Black "smshk35"]
[Result "1-0"]
[WhiteElo "2689"]
[BlackElo "2460"]
[TimeControl "180+1"]
[EndTime "10:34:12 PST"]
[Termination "DoHoChess won by resignation"]

1. Nf3 {[%clk 0:02:59.4]} 1... Nf6 {[%clk 0:02:59.4]} 2. c4 {[%clk 0:02:58.7]}
2... g6 {[%clk 0:02:59.2]} 3. Nc3 {[%clk 0:02:57.9]} 3... Bg7 {[%clk 0:02:59.6]}
4. e4 {[%clk 0:02:57.8]} 4... d6 {[%clk 0:02:57.7]} 5. d4 {[%clk 0:02:57.9]}
5... O-O {[%clk 0:02:57.2]} 6. Be2 {[%clk 0:02:58.2]} 6... Nbd7 {[%clk
0:02:56.7]} 7. O-O {[%clk 0:02:56.8]} 7... e5 {[%clk 0:02:57]} 8. Be3 {[%clk
0:02:57]} 8... Ng4 {[%clk 0:02:56.2]} 9. Bg5 {[%clk 0:02:56.6]} 9... f6 {[%clk
0:02:55.7]} 10. Bd2 {[%clk 0:02:54.5]} 10... Qe8 {[%clk 0:02:43.1]} 11. Nd5
{[%clk 0:02:09.8]} 11... Qd8 {[%clk 0:02:41.9]} 12. h3 {[%clk 0:02:08.3]} 12...
Nh6 {[%clk 0:02:41.4]} 13. dxe5 {[%clk 0:02:08.5]} 13... Nxe5 {[%clk 0:02:33.2]}
14. Nxe5 {[%clk 0:02:07.2]} 14... dxe5 {[%clk 0:02:10.3]} 15. Bb4 {[%clk
0:01:56.8]} 15... Re8 {[%clk 0:02:09.2]} 16. Be7 {[%clk 0:01:54.4]} 16... Qd7
{[%clk 0:01:51.6]} 17. Nxf6+ {[%clk 0:01:44.5]} 17... Bxf6 {[%clk 0:01:50.1]}
18. Bxf6 {[%clk 0:01:45.4]} 18... Qxd1 {[%clk 0:01:47]} 19. Rfxd1 {[%clk
0:01:44.8]} 19... Kf7 {[%clk 0:01:44.7]} 20. Bg5 {[%clk 0:01:43.1]} 20... Ng8
{[%clk 0:01:44.3]} 21. Rd3 {[%clk 0:01:26.1]} 21... Be6 {[%clk 0:01:40.6]} 22.
b3 {[%clk 0:01:23.8]} 22... h6 {[%clk 0:01:39.8]} 23. Bh4 {[%clk 0:01:21.9]}
23... Ne7 {[%clk 0:01:32.3]} 24. Rad1 {[%clk 0:01:14.5]} 24... Nc6 {[%clk
0:01:32]} 25. Bg4 {[%clk 0:00:54.3]} 25... Nd4 {[%clk 0:01:29.1]} 26. Bg3 {[%clk
0:00:49.4]} 26... Bxg4 {[%clk 0:01:24.4]} 27. hxg4 {[%clk 0:00:50.3]} 27... c5
{[%clk 0:01:16.9]} 28. R3d2 {[%clk 0:00:39.1]} 28... a5 {[%clk 0:01:02.9]} 29.
Rb1 {[%clk 0:00:31.5]} 29... g5 {[%clk 0:00:57.2]} 30. Kf1 {[%clk 0:00:30.5]}
30... Ke6 {[%clk 0:00:56.4]} 31. f3 {[%clk 0:00:30]} 31... Red8 {[%clk 0:00:49]}
32. Bf2 {[%clk 0:00:28.8]} 32... b6 {[%clk 0:00:44.5]} 33. Bxd4 {[%clk
0:00:28.6]} 33... Rxd4 {[%clk 0:00:42.7]} 34. Rxd4 {[%clk 0:00:28.5]} 34... exd4
{[%clk 0:00:41.3]} 35. Ke2 {[%clk 0:00:28.8]} 35... Ke5 {[%clk 0:00:40.9]} 36.
Rh1 {[%clk 0:00:28.7]} 36... Rh8 {[%clk 0:00:39]} 37. g3 {[%clk 0:00:29.1]}
37... Rh7 {[%clk 0:00:37.5]} 38. a3 {[%clk 0:00:26]} 38... Rh8 {[%clk
0:00:36.8]} 39. Rb1 {[%clk 0:00:24.9]} 39... h5 {[%clk 0:00:34.1]} 40. Rh1
{[%clk 0:00:23]} 40... h4 {[%clk 0:00:34.3]} 41. gxh4 {[%clk 0:00:23.1]} 41...
gxh4 {[%clk 0:00:34.9]} 42. Kf2 {[%clk 0:00:21.1]} 42... Kf4 {[%clk 0:00:32.9]}
43. Rg1 {[%clk 0:00:21.4]} 43... h3 {[%clk 0:00:30.6]} 44. Rh1 {[%clk
0:00:20.2]} 44... d3 {[%clk 0:00:29]} 45. e5 {[%clk 0:00:19.9]} 45... Kxe5
{[%clk 0:00:22]} 46. Ke3 {[%clk 0:00:20.2]} 46... d2 {[%clk 0:00:19.5]} 47. f4+
{[%clk 0:00:20.2]} 47... Ke6 {[%clk 0:00:15.3]} 48. Kxd2 {[%clk 0:00:21.1]}
48... Rh4 {[%clk 0:00:15.4]} 49. Ke3 {[%clk 0:00:20.5]} 49... Rxg4 {[%clk
0:00:14.6]} 50. Rxh3 {[%clk 0:00:20.8]} 50... Kf5 {[%clk 0:00:13.5]} 51. Rh5+
{[%clk 0:00:21]} 51... Kg6 {[%clk 0:00:12]} 52. Rg5+ {[%clk 0:00:21.5]} 52...
Rxg5 {[%clk 0:00:12.1]} 53. fxg5 {[%clk 0:00:22.4]} 53... Kxg5 {[%clk 0:00:13]}
54. Ke4 {[%clk 0:00:23]} 54... Kg4 {[%clk 0:00:10.2]} 55. Kd5 {[%clk 0:00:23.3]}
55... Kf4 {[%clk 0:00:10.6]} 56. Kc6 {[%clk 0:00:23.7]} 56... Ke4 {[%clk
0:00:07.1]} 57. Kxb6 {[%clk 0:00:23.8]} 57... a4 {[%clk 0:00:05.5]} 58. bxa4
{[%clk 0:00:23.1]} 58... Kd4 {[%clk 0:00:06]} 59. Kb5 {[%clk 0:00:23.6]} 1-0

[Event "*** Titled Tuesday Blitz"]
[Site "Chess.com"]
[Date "2020.11.24"]
[Round "2"]
[White "BocharovD"]
[Black "SchmakAttack"]
[Result "1-0"]
[WhiteElo "2788"]
[BlackElo "2504"]
[TimeControl "180+1"]
[EndTime "10:34:13 PST"]
[Termination "BocharovD won by checkmate"]

1. d4 {[%clk 0:03:00.9]} 1... Nf6 {[%clk 0:02:58.6]} 2. c4 {[%clk 0:03:00.4]}
2... e6 {[%clk 0:02:59]} 3. g3 {[%clk 0:02:59.5]} 3... d5 {[%clk 0:02:58.9]} 4.
Nf3 {[%clk 0:02:59]} 4... dxc4 {[%clk 0:02:58.8]} 5. Bg2 {[%clk 0:02:59.2]} 5...
c5 {[%clk 0:02:58.9]} 6. O-O {[%clk 0:02:57.8]} 6... Nc6 {[%clk 0:02:59.2]} 7.
Qa4 {[%clk 0:02:57.4]} 7... Bd7 {[%clk 0:02:59.1]} 8. Qxc4 {[%clk 0:02:57.3]}
8... b5 {[%clk 0:02:59.7]} 9. Qc3 {[%clk 0:02:56.6]} 9... b4 {[%clk 0:02:54.8]}
10. Qd3 {[%clk 0:02:55.8]} 10... Rc8 {[%clk 0:02:55.3]} 11. dxc5 {[%clk
0:02:44.5]} 11... Bxc5 {[%clk 0:02:52.9]} 12. Bg5 {[%clk 0:02:42]} 12... h6
{[%clk 0:02:17]} 13. Bxf6 {[%clk 0:02:41.1]} 13... Qxf6 {[%clk 0:02:17.9]} 14.
Nbd2 {[%clk 0:02:41.2]} 14... Ne5 {[%clk 0:02:03.6]} 15. Nxe5 {[%clk 0:02:26.2]}
15... Qxe5 {[%clk 0:02:04.5]} 16. Ne4 {[%clk 0:02:19.6]} 16... Be7 {[%clk
0:01:49.2]} 17. Rac1 {[%clk 0:02:16.8]} 17... Rd8 {[%clk 0:01:40.2]} 18. Rfd1
{[%clk 0:02:02.5]} 18... O-O {[%clk 0:01:33.9]} 19. Qb3 {[%clk 0:01:32.4]} 19...
Bb5 {[%clk 0:01:28.7]} 20. e3 {[%clk 0:01:32]} 20... Rxd1+ {[%clk 0:00:47.6]}
21. Rxd1 {[%clk 0:01:26.5]} 21... Rc8 {[%clk 0:00:47]} 22. Nd2 {[%clk
0:01:10.8]} 22... a5 {[%clk 0:00:36.2]} 23. a4 {[%clk 0:01:00.8]} 23... bxa3
{[%clk 0:00:36.1]} 24. bxa3 {[%clk 0:00:58.7]} 24... Rc3 {[%clk 0:00:36.2]} 25.
Qb2 {[%clk 0:00:54.9]} 25... Rxe3 {[%clk 0:00:24.7]} 26. Qxe5 {[%clk 0:00:34]}
26... Rxe5 {[%clk 0:00:25.6]} 27. Ra1 {[%clk 0:00:25.3]} 27... a4 {[%clk
0:00:18]} 28. Bf1 {[%clk 0:00:25.2]} 28... Bxf1 {[%clk 0:00:15.3]} 29. Kxf1
{[%clk 0:00:26.1]} 29... Rc5 {[%clk 0:00:15.4]} 30. Ra2 {[%clk 0:00:20.5]} 30...
Rc3 {[%clk 0:00:14.6]} 31. Ne4 {[%clk 0:00:20.9]} 31... Rb3 {[%clk 0:00:08.2]}
32. Ke2 {[%clk 0:00:20.1]} 32... f5 {[%clk 0:00:07.6]} 33. Nd2 {[%clk
0:00:16.5]} 33... Rxa3 {[%clk 0:00:08.1]} 34. Rc2 {[%clk 0:00:17.1]} 34... Bf6
{[%clk 0:00:07.2]} 35. Rc6 {[%clk 0:00:16]} 35... Kf7 {[%clk 0:00:06.8]} 36. Ra6
{[%clk 0:00:15.7]} 36... Ra2 {[%clk 0:00:07.3]} 37. Kd3 {[%clk 0:00:16.2]} 37...
a3 {[%clk 0:00:07.8]} 38. f4 {[%clk 0:00:16.5]} 38... Be7 {[%clk 0:00:06.5]} 39.
h4 {[%clk 0:00:16.2]} 39... h5 {[%clk 0:00:04.8]} 40. Nc4 {[%clk 0:00:17.1]}
40... Rg2 {[%clk 0:00:04.3]} 41. Ne5+ {[%clk 0:00:17.3]} 41... Kf6 {[%clk
0:00:04.7]} 42. Nd7+ {[%clk 0:00:16.3]} 42... Kf7 {[%clk 0:00:04]} 43. Ne5+
{[%clk 0:00:16.7]} 43... Kg8 {[%clk 0:00:04.5]} 44. Rxe6 {[%clk 0:00:16.1]}
44... a2 {[%clk 0:00:04.9]} 45. Ra6 {[%clk 0:00:15.4]} 45... Rxg3+ {[%clk
0:00:03.9]} 46. Kc4 {[%clk 0:00:16]} 46... Rg2 {[%clk 0:00:04]} 47. Kd5 {[%clk
0:00:14.8]} 47... Bxh4 {[%clk 0:00:02.9]} 48. Ke6 {[%clk 0:00:15.1]} 48... Bf6
{[%clk 0:00:02.4]} 49. Ra8+ {[%clk 0:00:03.8]} 49... Kh7 {[%clk 0:00:01.9]} 50.
Kxf5 {[%clk 0:00:04.7]} 50... h4 {[%clk 0:00:01.9]} 51. Nf7 {[%clk 0:00:05]}
51... g6+ {[%clk 0:00:02]} 52. Kxf6 {[%clk 0:00:05]} 52... g5 {[%clk 0:00:02.3]}
53. Rh8# {[%clk 0:00:04.9]} 1-0

[Event "*** Titled Tuesday Blitz"]
[Site "Chess.com"]
[Date "2020.11.24"]
[Round "2"]
[White "Shield12"]
[Black "Chigorinetz"]
[Result "1-0"]
[WhiteElo "2916"]
[BlackElo "2558"]
[TimeControl "180+1"]
[EndTime "10:34:16 PST"]
[Termination "Shield12 won on time"]

1. e4 {[%clk 0:03:00.9]} 1... c5 {[%clk 0:02:59.8]} 2. Nf3 {[%clk 0:03:01]} 2...
Nc6 {[%clk 0:02:59.6]} 3. d4 {[%clk 0:03:01.2]} 3... cxd4 {[%clk 0:02:59]} 4.
Nxd4 {[%clk 0:03:02.1]} 4... g6 {[%clk 0:02:59.4]} 5. Nc3 {[%clk 0:03:01.3]}
5... Bg7 {[%clk 0:02:59.4]} 6. Be3 {[%clk 0:03:01.9]} 6... Nf6 {[%clk
0:02:59.6]} 7. Bc4 {[%clk 0:03:01.8]} 7... O-O {[%clk 0:02:59.1]} 8. Bb3 {[%clk
0:03:02.2]} 8... d6 {[%clk 0:02:58.2]} 9. f3 {[%clk 0:03:01.8]} 9... Qa5 {[%clk
0:02:56.3]} 10. Qd2 {[%clk 0:03:01.1]} 10... Nxd4 {[%clk 0:02:56.1]} 11. Bxd4
{[%clk 0:03:02]} 11... Be6 {[%clk 0:02:56]} 12. O-O {[%clk 0:02:52.7]} 12... Nd7
{[%clk 0:02:55.1]} 13. Bxg7 {[%clk 0:02:50.3]} 13... Kxg7 {[%clk 0:02:56]} 14.
Rfe1 {[%clk 0:02:46.4]} 14... Rac8 {[%clk 0:02:53.2]} 15. Kh1 {[%clk 0:02:46]}
15... h5 {[%clk 0:02:44.6]} 16. Rad1 {[%clk 0:02:44.7]} 16... a6 {[%clk
0:02:41.4]} 17. f4 {[%clk 0:02:39.1]} 17... Nc5 {[%clk 0:01:54.5]} 18. f5 {[%clk
0:02:32.8]} 18... Bxb3 {[%clk 0:01:52.8]} 19. axb3 {[%clk 0:02:31.8]} 19... Nd7
{[%clk 0:01:51]} 20. Rf1 {[%clk 0:02:12.4]} 20... Nf6 {[%clk 0:01:50.1]} 21. Rf3
{[%clk 0:02:07.6]} 21... Qe5 {[%clk 0:01:45.9]} 22. Re1 {[%clk 0:02:05]} 22...
Rc5 {[%clk 0:01:30.1]} 23. Qd3 {[%clk 0:02:02]} 23... Rfc8 {[%clk 0:01:27.3]}
24. Re2 {[%clk 0:02:00.9]} 24... Ng4 {[%clk 0:01:18]} 25. g3 {[%clk 0:01:59.7]}
25... Nf6 {[%clk 0:01:15.8]} 26. fxg6 {[%clk 0:01:56.2]} 26... fxg6 {[%clk
0:01:14.8]} 27. Ref2 {[%clk 0:01:56.1]} 27... Kg8 {[%clk 0:01:05]} 28. Kg2
{[%clk 0:01:41.6]} 28... Kg7 {[%clk 0:01:03.9]} 29. Nd5 {[%clk 0:01:39.1]} 29...
Nxd5 {[%clk 0:00:58.3]} 30. exd5 {[%clk 0:01:38.5]} 30... Qxd5 {[%clk
0:00:54.2]} 31. Qxd5 {[%clk 0:01:38.1]} 31... Rxd5 {[%clk 0:00:53.1]} 32. Rf7+
{[%clk 0:01:39]} 32... Kh6 {[%clk 0:00:53.2]} 33. Rxe7 {[%clk 0:01:39.9]} 33...
b5 {[%clk 0:00:48.6]} 34. h4 {[%clk 0:01:38.8]} 34... Rf5 {[%clk 0:00:43.3]} 35.
Rxf5 {[%clk 0:01:28.7]} 35... gxf5 {[%clk 0:00:42.7]} 36. c3 {[%clk 0:01:29.2]}
36... d5 {[%clk 0:00:33.8]} 37. Re6+ {[%clk 0:01:26.2]} 37... Kg7 {[%clk
0:00:33.6]} 38. Rxa6 {[%clk 0:01:23]} 38... b4 {[%clk 0:00:33.4]} 39. cxb4
{[%clk 0:01:05.4]} 39... Rc2+ {[%clk 0:00:32.1]} 40. Kf3 {[%clk 0:01:05.6]}
40... Rxb2 {[%clk 0:00:32.1]} 41. Ra3 {[%clk 0:00:57.1]} 41... Kf6 {[%clk
0:00:30]} 42. b5 {[%clk 0:00:55.1]} 42... Rc2 {[%clk 0:00:29.1]} 43. b6 {[%clk
0:00:52.7]} 43... Rc8 {[%clk 0:00:16.8]} 44. b7 {[%clk 0:00:45.3]} 44... Rb8
{[%clk 0:00:15.7]} 45. Ra6+ {[%clk 0:00:41.8]} 45... Ke5 {[%clk 0:00:15.5]} 46.
Rb6 {[%clk 0:00:42.7]} 46... d4 {[%clk 0:00:12.2]} 47. b4 {[%clk 0:00:37.8]}
47... Kd5 {[%clk 0:00:10.4]} 48. Kf4 {[%clk 0:00:37]} 48... Kc4 {[%clk
0:00:09.2]} 49. Rc6+ {[%clk 0:00:19.9]} 49... Kxb4 {[%clk 0:00:05.5]} 50. Rc7
{[%clk 0:00:19.6]} 50... Kb5 {[%clk 0:00:03.9]} 51. Kxf5 {[%clk 0:00:18.6]}
51... Kb6 {[%clk 0:00:03.8]} 52. Rd7 {[%clk 0:00:18.8]} 52... d3 {[%clk
0:00:02.4]} 53. Rxd3 {[%clk 0:00:18]} 53... Kc6 {[%clk 0:00:01.1]} 54. Rb3
{[%clk 0:00:17.6]} 1-0

[Event "*** Titled Tuesday Blitz"]
[Site "Chess.com"]
[Date "2020.11.24"]
[Round "2"]
[White "No_t_ime_to_die"]
[Black "shaheus"]
[Result "0-1"]
[WhiteElo "2425"]
[BlackElo "2221"]
[TimeControl "180+1"]
[EndTime "10:34:16 PST"]
[Termination "shaheus won by checkmate"]

1. e4 {[%clk 0:03:00.9]} 1... d5 {[%clk 0:02:59.7]} 2. exd5 {[%clk 0:02:53.1]}
2... Nf6 {[%clk 0:02:59.7]} 3. d4 {[%clk 0:02:52.5]} 3... Bg4 {[%clk 0:02:59.1]}
4. Nf3 {[%clk 0:02:48.2]} 4... Qxd5 {[%clk 0:02:58.4]} 5. Be2 {[%clk 0:02:48.6]}
5... Nc6 {[%clk 0:02:58]} 6. c4 {[%clk 0:02:48.1]} 6... Qd6 {[%clk 0:02:53]} 7.
d5 {[%clk 0:02:46.1]} 7... Bxf3 {[%clk 0:02:45.5]} 8. gxf3 {[%clk 0:02:47]} 8...
Ne5 {[%clk 0:02:41]} 9. f4 {[%clk 0:02:45.3]} 9... Ng6 {[%clk 0:02:37.1]} 10.
Qa4+ {[%clk 0:02:39.4]} 10... Qd7 {[%clk 0:02:29.7]} 11. Qb3 {[%clk 0:02:37.2]}
11... O-O-O {[%clk 0:02:06.7]} 12. Be3 {[%clk 0:02:36.5]} 12... e6 {[%clk
0:02:05.2]} 13. dxe6 {[%clk 0:02:15.1]} 13... Qxe6 {[%clk 0:01:54.4]} 14. Bf3
{[%clk 0:02:08]} 14... c6 {[%clk 0:01:34]} 15. c5 {[%clk 0:01:49.5]} 15... Qxb3
{[%clk 0:01:22.3]} 16. axb3 {[%clk 0:01:50.4]} 16... a6 {[%clk 0:01:22.4]} 17.
Nc3 {[%clk 0:01:47.4]} 17... Be7 {[%clk 0:01:04.9]} 18. O-O {[%clk 0:01:19.4]}
18... Nh4 {[%clk 0:01:02.1]} 19. Bh1 {[%clk 0:01:17.9]} 19... Nf5 {[%clk
0:01:01.3]} 20. Rad1 {[%clk 0:01:17.5]} 20... Nxe3 {[%clk 0:00:58.8]} 21. fxe3
{[%clk 0:01:18.4]} 21... Bxc5 {[%clk 0:00:57.8]} 22. Rde1 {[%clk 0:01:13.4]}
22... Rhe8 {[%clk 0:00:56.8]} 23. Rf3 {[%clk 0:01:11.2]} 23... Rd3 {[%clk
0:00:53]} 24. Na4 {[%clk 0:01:03.4]} 24... Rdxe3 {[%clk 0:00:40.3]} 25. Rexe3
{[%clk 0:00:58.2]} 25... Bxe3+ {[%clk 0:00:40.1]} 26. Kf1 {[%clk 0:00:58.1]}
26... Ba7 {[%clk 0:00:39.3]} 27. Rg3 {[%clk 0:00:58.3]} 27... g6 {[%clk
0:00:38.8]} 28. Bg2 {[%clk 0:00:58]} 28... Ne4 {[%clk 0:00:36.7]} 29. Bh3+
{[%clk 0:00:56.3]} 29... f5 {[%clk 0:00:36.6]} 30. Rd3 {[%clk 0:00:56.9]} 30...
Rd8 {[%clk 0:00:33.8]} 31. Rxd8+ {[%clk 0:00:50.3]} 31... Kxd8 {[%clk
0:00:33.9]} 32. Bg2 {[%clk 0:00:50.7]} 32... Nd2+ {[%clk 0:00:30.2]} 33. Ke2
{[%clk 0:00:50.8]} 33... Nxb3 {[%clk 0:00:30.2]} 34. Kd3 {[%clk 0:00:51.4]}
34... Nd4 {[%clk 0:00:28]} 35. Nc3 {[%clk 0:00:50]} 35... Ke7 {[%clk 0:00:25]}
36. Kc4 {[%clk 0:00:50.4]} 36... Ne6 {[%clk 0:00:24.1]} 37. Ne2 {[%clk
0:00:46.2]} 37... Be3 {[%clk 0:00:24.1]} 38. Kd3 {[%clk 0:00:42.4]} 38... Bxf4
{[%clk 0:00:23.1]} 39. h3 {[%clk 0:00:42.3]} 39... Be5 {[%clk 0:00:22.1]} 40.
Kc2 {[%clk 0:00:40.7]} 40... Kd6 {[%clk 0:00:22.3]} 41. Bf1 {[%clk 0:00:39.9]}
41... b5 {[%clk 0:00:22.2]} 42. Nc1 {[%clk 0:00:40.4]} 42... c5 {[%clk
0:00:21.7]} 43. Nd3 {[%clk 0:00:40.7]} 43... Bd4 {[%clk 0:00:21.1]} 44. b4
{[%clk 0:00:39.6]} 44... c4 {[%clk 0:00:19.8]} 45. Ne1 {[%clk 0:00:38.9]} 45...
g5 {[%clk 0:00:19]} 46. Bg2 {[%clk 0:00:38.5]} 46... h6 {[%clk 0:00:18.9]} 47.
Bb7 {[%clk 0:00:39]} 47... Nc7 {[%clk 0:00:18.3]} 48. Nf3 {[%clk 0:00:39]} 48...
Bf6 {[%clk 0:00:17.2]} 49. Bc8 {[%clk 0:00:39.7]} 49... g4 {[%clk 0:00:16.2]}
50. hxg4 {[%clk 0:00:39.5]} 50... fxg4 {[%clk 0:00:16.5]} 51. Bxg4 {[%clk
0:00:40.4]} 51... Nd5 {[%clk 0:00:14.9]} 52. Bc8 {[%clk 0:00:38.3]} 52... Nxb4+
{[%clk 0:00:14.7]} 53. Kd2 {[%clk 0:00:38.9]} 53... Nc6 {[%clk 0:00:13.4]} 54.
Bxa6 {[%clk 0:00:38.4]} 54... Kc5 {[%clk 0:00:13.9]} 55. Ne1 {[%clk 0:00:37.8]}
55... b4 {[%clk 0:00:14.1]} 56. Nc2 {[%clk 0:00:38.1]} 56... b3 {[%clk
0:00:13.6]} 57. Ne3 {[%clk 0:00:38.6]} 57... c3+ {[%clk 0:00:13.4]} 58. Kc1
{[%clk 0:00:38.1]} 58... Bg5 {[%clk 0:00:13.4]} 59. Kb1 {[%clk 0:00:36.6]} 59...
Bxe3 {[%clk 0:00:13.5]} 60. Bd3 {[%clk 0:00:37.5]} 60... Nb4 {[%clk 0:00:13.2]}
61. Bh7 {[%clk 0:00:37.1]} 61... Bd4 {[%clk 0:00:12.6]} 62. Kc1 {[%clk
0:00:37.1]} 62... Kc4 {[%clk 0:00:11.3]} 63. Bg8+ {[%clk 0:00:35.9]} 63... Nd5
{[%clk 0:00:11.3]} 64. Bf7 {[%clk 0:00:35.2]} 64... Be3+ {[%clk 0:00:11.4]} 65.
Kb1 {[%clk 0:00:33.8]} 65... c2+ {[%clk 0:00:11.8]} 66. Kb2 {[%clk 0:00:34.2]}
66... c1=Q# {[%clk 0:00:11.3]} 0-1

[Event "*** Titled Tuesday Blitz"]
[Site "Chess.com"]
[Date "2020.11.24"]
[Round "2"]
[White "AlexSuv"]
[Black "RD4ever"]
[Result "1/2-1/2"]
[WhiteElo "2526"]
[BlackElo "2818"]
[TimeControl "180+1"]
[EndTime "10:34:17 PST"]
[Termination "Game drawn by repetition"]

1. d4 {[%clk 0:03:00.9]} 1... Nf6 {[%clk 0:02:49.9]} 2. c4 {[%clk 0:03:00.7]}
2... g6 {[%clk 0:02:48.7]} 3. Nc3 {[%clk 0:02:59.5]} 3... Bg7 {[%clk 0:02:49.2]}
4. e4 {[%clk 0:02:59.8]} 4... d6 {[%clk 0:02:49]} 5. Nf3 {[%clk 0:03:00.5]} 5...
O-O {[%clk 0:02:48.7]} 6. Be2 {[%clk 0:03:00.2]} 6... e5 {[%clk 0:02:48.6]} 7.
Be3 {[%clk 0:03:00.5]} 7... exd4 {[%clk 0:02:35.1]} 8. Nxd4 {[%clk 0:02:58.7]}
8... Re8 {[%clk 0:02:34.6]} 9. f3 {[%clk 0:02:58.6]} 9... c6 {[%clk 0:02:33.9]}
10. Bf2 {[%clk 0:02:57.3]} 10... d5 {[%clk 0:02:28.5]} 11. exd5 {[%clk
0:02:57.3]} 11... cxd5 {[%clk 0:02:29.4]} 12. c5 {[%clk 0:02:57.5]} 12... Nc6
{[%clk 0:02:28]} 13. O-O {[%clk 0:02:55.6]} 13... Bf8 {[%clk 0:02:26.2]} 14.
Nxc6 {[%clk 0:02:53.2]} 14... bxc6 {[%clk 0:02:27.1]} 15. Bd4 {[%clk 0:02:53]}
15... Nh5 {[%clk 0:02:22.7]} 16. Re1 {[%clk 0:02:48]} 16... Qg5 {[%clk
0:02:16.3]} 17. Bf1 {[%clk 0:02:39.8]} 17... Bh3 {[%clk 0:02:07.5]} 18. Qc2
{[%clk 0:02:24.3]} 18... Bf5 {[%clk 0:02:01.7]} 19. Qf2 {[%clk 0:02:20.5]} 19...
Nf4 {[%clk 0:02:00.5]} 20. g3 {[%clk 0:02:13.1]} 20... Nh3+ {[%clk 0:01:52.7]}
21. Bxh3 {[%clk 0:02:12]} 21... Bxh3 {[%clk 0:01:53.6]} 22. b4 {[%clk 0:02:08]}
22... h5 {[%clk 0:01:47.6]} 23. b5 {[%clk 0:02:01.4]} 23... Bd7 {[%clk
0:01:35.6]} 24. a4 {[%clk 0:01:54.1]} 24... h4 {[%clk 0:01:35.2]} 25. bxc6
{[%clk 0:01:41.2]} 25... Bxc6 {[%clk 0:01:34.1]} 26. Nb5 {[%clk 0:01:41.8]}
26... a6 {[%clk 0:01:10.7]} 27. Nd6 {[%clk 0:01:38.1]} 27... Rxe1+ {[%clk
0:01:09.6]} 28. Rxe1 {[%clk 0:01:37.2]} 28... Bxa4 {[%clk 0:01:04.1]} 29. f4
{[%clk 0:01:13.9]} 29... Qg4 {[%clk 0:00:56.9]} 30. f5 {[%clk 0:01:14.2]} 30...
hxg3 {[%clk 0:00:55.5]} 31. hxg3 {[%clk 0:01:13]} 31... Bd7 {[%clk 0:00:48.3]}
32. fxg6 {[%clk 0:01:04.6]} 32... Qxg6 {[%clk 0:00:49.2]} 33. Qf4 {[%clk
0:00:52.9]} 33... Be6 {[%clk 0:00:40.8]} 34. Qe5 {[%clk 0:00:44.4]} 34... Bg7
{[%clk 0:00:40.7]} 35. Qxg7+ {[%clk 0:00:44.5]} 35... Qxg7 {[%clk 0:00:41.6]}
36. Bxg7 {[%clk 0:00:45.1]} 36... Kxg7 {[%clk 0:00:42.5]} 37. c6 {[%clk
0:00:45.8]} 37... a5 {[%clk 0:00:24]} 38. c7 {[%clk 0:00:28.3]} 38... a4 {[%clk
0:00:23.9]} 39. Ra1 {[%clk 0:00:24]} 39... a3 {[%clk 0:00:23.4]} 40. c8=Q {[%clk
0:00:23.4]} 40... Bxc8 {[%clk 0:00:23.3]} 41. Nxc8 {[%clk 0:00:24]} 41... Rxc8
{[%clk 0:00:24.2]} 42. Rxa3 {[%clk 0:00:24]} 42... Kf6 {[%clk 0:00:24.8]} 43.
Kf2 {[%clk 0:00:22.5]} 43... Re8 {[%clk 0:00:21.6]} 44. Kf3 {[%clk 0:00:20.9]}
44... Re1 {[%clk 0:00:20.3]} 45. Ra7 {[%clk 0:00:19.7]} 45... Ke6 {[%clk
0:00:20]} 46. Ra6+ {[%clk 0:00:19.4]} 46... Ke5 {[%clk 0:00:20.4]} 47. Ra7
{[%clk 0:00:19.8]} 47... Kd4 {[%clk 0:00:21]} 48. Kf2 {[%clk 0:00:17.8]} 48...
Rb1 {[%clk 0:00:19]} 49. Rxf7 {[%clk 0:00:18.1]} 49... Kd3 {[%clk 0:00:19.6]}
50. g4 {[%clk 0:00:17.6]} 50... d4 {[%clk 0:00:18.9]} 51. g5 {[%clk 0:00:18]}
51... Rb5 {[%clk 0:00:18]} 52. g6 {[%clk 0:00:17.9]} 52... Rg5 {[%clk
0:00:18.5]} 53. g7 {[%clk 0:00:18.2]} 53... Kc2 {[%clk 0:00:19]} 54. Kf3 {[%clk
0:00:18.6]} 54... d3 {[%clk 0:00:19]} 55. Kf4 {[%clk 0:00:18.5]} 55... Rg1
{[%clk 0:00:19.6]} 56. Rc7+ {[%clk 0:00:17.9]} 56... Kb2 {[%clk 0:00:19.4]} 57.
Rb7+ {[%clk 0:00:15.7]} 57... Kc2 {[%clk 0:00:19.5]} 58. Rc7+ {[%clk 0:00:16]}
58... Kb2 {[%clk 0:00:18.1]} 59. Rb7+ {[%clk 0:00:16.1]} 59... Kc3 {[%clk
0:00:18.5]} 60. Rc7+ {[%clk 0:00:16.5]} 60... Kb2 {[%clk 0:00:19]} 1/2-1/2